bitfinex/quotes_ETHUSD_20260304
["timestamp","ask_amount","ask_price","bid_price","bid_amount"]
[1772627741838,5.90527866,2042.8,2041.9,6.14885606]
[1772627743234,1.22381045,2042.8,2041.9,6.14885606]
[1772627743528,1.22379598,2042.9,2042.1,4.92450619]
[1772627743903,4.89453962,2043.1,2042.2,4.92450619]
[1772627744100,4.68146821,2043.0,2042.2,4.92450619]
[1772627745426,4.68146821,2043.0,2042.0,0.001]
[1772627746137,4.68146821,2042.8,2041.8,0.001]
[1772627746319,4.68146821,2042.7,2041.8,0.001]
[1772627746843,4.68146821,2042.7,2041.5,1.22557971]
[1772627747350,4.68146821,2042.5,2041.5,0.001]
[1772627747837,0.065536,2042.7,2041.2,5.01869907]
[1772627747838,4.68146821,2041.9,2041.2,5.01869907]
[1772627748045,1.22440983,2041.8,2040.9,1.22491768]
[1772627748263,5.90587804,2041.8,2040.9,1.22491768]
[1772627749558,5.90587804,2041.8,2041.0,4.76479454]
[1772627749728,1.22440983,2041.8,2041.0,4.76479454]
[1772627750130,4.89763933,2041.9,2041.1,1.22482974]
[1772627751565,1.22434987,2041.9,2041.2,4.76479454]
[1772627751765,6.42535752,2042.0,2041.2,4.76479454]
[1772627751766,1.22433586,2042.0,2041.2,4.76479454]
[1772627752259,1.22411007,2042.3,2041.4,4.76479454]
[1772627752577,9.78565801,2042.7,2041.6,4.76479454]
[1772627752734,1.22393028,2042.6,2041.6,4.76479454]
[1772627753062,9.78565801,2042.7,2041.6,4.76479454]
[1772627753063,1.55082774,2042.7,2041.6,4.76479454]
[1772627754258,0.32693215,2042.7,2041.8,4.76479454]
[1772627754464,1.55080811,2042.7,2041.8,4.76479454]
[1772627754952,0.32693215,2042.7,2041.8,4.76479454]
[1772627756450,0.32693215,2042.7,2042.0,4.76479454]
[1772627756638,0.32693215,2042.7,2042.2,4.76479454]
[1772627757168,4.56302624,2042.6,2041.7,7.35322646]
[1772627758036,0.001,2042.5,2041.7,7.35322646]
[1772627758544,1.2249902,2042.5,2041.7,7.35322646]
[1772627760561,5.78801644,2042.5,2041.7,7.35322646]
[1772627761441,5.01166648,2042.4,2041.1,4.76589454]
[1772627761755,4.56302624,2041.8,2041.1,0.0011]
[1772627762161,5.01226065,2041.7,2041.1,0.0011]
[1772627762342,4.56302624,2041.5,2040.9,0.0011]
[1772627762872,1.22464975,2041.4,2040.9,0.0011]
[1772627763172,5.78766405,2041.5,2040.9,0.0011]
[1772627765962,0.44970622,2041.4,2040.9,0.0011]
[1772627766163,5.78766405,2041.5,2040.9,0.0011]
[1772627766360,0.44975079,2041.4,2040.9,0.0011]
[1772627766535,5.78766405,2041.5,2040.9,0.0011]
[1772627766731,0.44975298,2041.4,2040.9,0.0011]
[1772627766946,5.78766405,2041.5,2040.9,0.0011]
[1772627767162,4.56302624,2041.2,2040.9,0.0011]
[1772627767544,4.56302624,2041.2,2040.6,0.0011]
[1772627769135,1.22482974,2041.1,2040.6,0.0011]
[1772627769945,5.78767599,2041.4,2041.1,0.0011]
[1772627770146,0.45077899,2041.3,2041.1,0.0011]
[1772627770345,0.001,2041.3,2041.1,0.0011]
[1772627773273,1.22575853,2041.3,2041.1,0.0011]
[1772627773641,0.001,2041.3,2041.1,0.0011]
[1772627774267,0.001,2041.3,2040.9,2.76699454]
[1772627775270,0.001,2041.3,2041.0,1.22488975]
[1772627775865,1.22445641,2041.8,2041.1,4.76479454]
[1772627776064,1.22439648,2041.9,2041.1,4.76479454]
[1772627776968,1.22439648,2041.9,2041.2,1.369]
[1772627777360,9.46032914,2042.0,2041.3,1.22470974]
[1772627777540,0.45063727,2041.9,2041.3,1.22470974]
[1772627777742,9.46032914,2042.0,2041.3,1.22470974]
[1772627777950,0.45102719,2041.9,2041.3,5.98950428]
[1772627778168,0.45094295,2041.8,2041.1,4.76479454]
[1772627778373,4.8973029,2042.0,2041.1,4.76479454]
[1772627778667,0.45099908,2041.9,2041.1,4.76479454]
[1772627778854,1.22428991,2042.0,2041.1,4.76479454]
[1772627779056,0.45095159,2041.9,2041.1,4.76479454]
[1772627779249,1.22428991,2042.0,2041.2,1.22476974]
[1772627779448,0.45097391,2041.9,2041.2,1.22476974]
[1772627779640,1.22428991,2042.0,2041.2,1.22476974]
[1772627779846,0.45097333,2041.9,2041.2,1.22476974]
[1772627780176,1.22428991,2042.0,2041.2,1.22476974]
[1772627780369,0.45097982,2041.9,2041.2,1.22476974]
[1772627780571,5.82384622,2042.0,2041.2,1.22476974]
[1772627780773,5.05054782,2041.9,2040.7,4.53774094]
[1772627781077,4.59955631,2041.7,2040.4,5.76299041]
[1772627781372,4.59955631,2041.3,2040.4,4.53774094]
[1772627781577,5.05054782,2041.2,2040.1,4.53774094]
[1772627781914,1.22464975,2041.4,2040.1,4.53774094]
[1772627781915,4.59955631,2041.0,2040.1,4.53774094]
[1772627782049,5.05054782,2040.9,2040.0,3.74162349]
[1772627782249,0.45099151,2040.8,2040.0,2.51613446]
[1772627782579,0.45099151,2040.7,2040.0,2.51613446]
[1772627782755,4.59955631,2040.9,2040.0,3.74161948]
[1772627783076,5.17793043,2040.8,2040.0,1.22548502]
[1772627783264,1.22512986,2040.6,2040.0,1.22548502]
[1772627783774,1.22512986,2040.6,2039.9,1.22550692]
[1772627784178,1.22512986,2040.6,2039.8,5.76334437]
[1772627785080,4.72747183,2040.5,2039.5,7.17273448]
[1772627785280,4.72747183,2040.5,2039.3,0.49856327]
[1772627785281,1.22537006,2040.2,2039.3,1.72442589]
[1772627785481,5.17749636,2040.1,2039.3,0.49856327]
[1772627785687,4.72747183,2040.1,2039.3,0.49856327]
[1772627785992,4.72747183,2040.1,2039.3,1.72445956]
[1772627786970,4.72747183,2040.1,2039.3,0.49856327]
[1772627787269,4.72747183,2039.8,2039.1,0.0011]
[1772627787991,4.72747183,2039.6,2039.1,0.0011]
[1772627789067,8.69931726,2039.9,2039.1,0.0011]
[1772627789270,1.22543012,2040.1,2039.2,1.22597096]
[1772627789480,5.95287857,2040.2,2039.4,4.65660002]
[1772627789679,5.95287857,2040.2,2039.3,6.02660002]
[1772627789864,1.22540674,2040.2,2039.4,4.65660002]
[1772627790065,9.62825124,2040.5,2039.4,4.65660002]
[1772627790066,4.90117297,2040.4,2039.4,4.65660002]
[1772627790793,9.6286448,2040.4,2039.5,1.37]
[1772627791294,4.72747183,2040.3,2039.4,5.88240432]
[1772627791498,5.17703909,2040.2,2039.2,6.27377796]
[1772627791693,4.72747183,2040.2,2039.2,6.27377796]
[1772627792269,4.72747183,2040.5,2039.3,4.65660002]
[1772627792469,5.17698182,2040.4,2039.3,4.65660002]
[1772627792667,4.90054687,2040.6,2039.3,4.65660002]
[1772627792972,0.44939174,2040.5,2039.3,4.65660002]
[1772627793182,4.90054687,2040.6,2039.3,4.65660002]
[1772627793380,1.22494977,2040.9,2039.5,4.65660002]
[1772627793703,5.95239502,2041.0,2039.5,4.65660002]
[1772627793892,5.95194163,2041.7,2039.9,4.65660002]
[1772627794194,0.44950851,2041.6,2040.3,4.65660002]
[1772627794365,5.95194163,2041.7,2040.3,4.65660002]
[1772627794366,0.44950851,2041.5,2040.3,4.65660002]
[1772627794571,5.95194163,2041.7,2040.3,4.65660002]
[1772627794788,0.44949512,2041.6,2040.3,4.65660002]
[1772627795073,5.95194163,2041.7,2040.3,4.65660002]
[1772627795396,1.22458976,2041.5,2040.6,5.88172988]
[1772627797797,4.89816729,2041.6,2040.7,1.372]
[1772627798368,4.89816729,2041.6,2040.6,5.88172988]
[1772627798574,4.89816729,2041.6,2040.7,1.373]
[1772627798801,4.89816729,2041.6,2040.6,5.88172988]
[1772627799193,9.62563912,2041.6,2040.6,7.25472988]
[1772627799383,4.89816729,2041.6,2040.6,7.25472988]
[1772627799581,1.22464975,2041.4,2040.6,6.02960002]
[1772627799784,1.22464975,2041.4,2040.6,7.25472665]
[1772627800387,5.95212158,2041.4,2040.6,1.373]
[1772627800698,4.72747183,2041.3,2040.2,4.01425462]
[1772627801081,4.72747183,2041.3,2040.2,7.29785464]
[1772627801282,4.72747183,2041.3,2040.2,7.29788506]
[1772627801482,5.17624532,2041.2,2040.2,7.29788506]
[1772627801687,1.22482974,2041.1,2040.3,4.65660002]
[1772627801900,1.22464975,2041.4,2040.3,4.65660002]
[1772627802610,1.2244698,2041.7,2040.3,4.65660002]
[1772627803690,5.95194163,2041.7,2040.5,4.65660002]
[1772627805089,4.72747183,2041.6,2040.5,4.65660002]
[1772627805296,4.72747183,2041.6,2040.6,6.03160002]
[1772627806105,1.22458976,2041.5,2040.7,1.22506982]
[1772627806312,1.22458976,2041.5,2040.8,4.65660002]
[1772627806992,1.22558976,2041.5,2040.8,4.65660002]
[1772627808407,0.001,2041.5,2040.9,1.22494977]
[1772627808610,4.74071413,2041.5,2040.4,4.48792498]
[1772627808788,4.74071413,2041.5,2040.7,1.376]
[1772627808982,4.74071413,2041.5,2040.5,1.376]
[1772627809181,4.74071413,2041.5,2040.5,5.86392498]
[1772627810003,4.74071413,2041.5,2040.6,4.48792498]
[1772627810584,1.22464975,2041.4,2040.7,1.22506982]
[1772627814215,4.73971413,2041.4,2040.7,1.22506982]
[1772627815325,0.001,2041.5,2040.8,4.48792498]
[1772627815620,9.63759334,2041.9,2040.8,4.48792498]
[1772627815621,1.42533516,2042.6,2041.3,4.48792498]
[1772627815829,1.42533516,2042.6,2041.5,4.48792498]
[1772627815830,4.94111901,2042.6,2041.5,4.48792498]
[1772627816027,4.94111901,2042.6,2041.6,1.378]
[1772627816320,4.73971413,2042.4,2041.5,4.48792498]
[1772627816527,4.73971413,2042.4,2041.4,1.378]
[1772627816690,1.2239902,2042.5,2041.2,7.09064797]
[1772627816691,4.73971413,2042.2,2041.2,7.09064797]
[1772627817316,5.96370433,2042.5,2041.3,4.48792498]
[1772627818228,7.51758449,2042.8,2041.5,4.48792498]
[1772627818391,5.34496295,2042.7,2041.5,4.48792498]
[1772627818587,0.20140488,2042.6,2041.5,4.48792498]
[1772627818793,0.001,2042.4,2041.5,4.48792498]
[1772627819617,4.74071413,2042.4,2041.1,1.22478403]
[1772627819824,4.73971413,2042.2,2040.9,5.71287475]
[1772627820138,4.73971413,2042.0,2040.9,5.71287475]
[1772627820305,1.67369089,2041.9,2040.9,5.71287475]
[1772627820623,1.22434987,2041.9,2040.9,5.71287475]
[1772627821117,5.96404759,2042.0,2040.9,5.71287475]
[1772627821331,1.22422995,2042.1,2041.0,4.48792498]
[1772627821529,0.45015829,2042.0,2041.0,4.48792498]
[1772627821747,1.22422995,2042.1,2041.0,4.48792498]
[1772627821896,5.96477297,2042.4,2041.1,4.48792498]
[1772627822095,0.20140488,2041.9,2041.2,5.86892498]
[1772627822327,0.20140488,2041.9,2041.3,1.22470974]
[1772627822533,1.42576196,2041.9,2041.3,1.22470974]
[1772627822735,0.20140488,2041.9,2041.3,1.22470974]
[1772627823607,0.001,2042.4,2041.3,1.22470974]
[1772627823608,4.74071413,2042.4,2041.4,4.48792498]
[1772627823925,0.001,2042.4,2041.7,4.48792498]
[1772627824131,0.001,2042.4,2041.8,1.383]
[1772627824330,4.74071413,2042.4,2041.6,1.2244861]
[1772627825703,0.001,2042.4,2041.6,1.2244861]
[1772627826938,4.74071413,2042.4,2041.5,4.89821208]
[1772627827711,4.74071413,2042.4,2041.5,1.22458976]
[1772627828118,0.45045601,2042.3,2041.4,7.09956729]
[1772627828314,4.73971413,2042.3,2041.4,7.09956729]
[1772627828511,4.73971413,2042.3,2041.2,1.22473766]
[1772627828719,4.73971413,2042.1,2041.2,2.61273766]
[1772627829231,1.22428991,2042.0,2041.2,2.61273766]
[1772627829405,4.73971413,2042.3,2041.3,4.48792498]
[1772627829601,0.45041529,2042.2,2041.3,4.48792498]
[1772627829810,4.73971413,2042.3,2041.3,4.48792498]
[1772627830008,0.45041274,2042.2,2041.3,4.48792498]
[1772627830217,4.73971413,2042.2,2041.3,4.48792498]
[1772627830716,4.73971413,2042.2,2041.5,0.0011]
[1772627831126,1.22422995,2042.1,2041.5,0.0011]
[1772627832427,5.96394408,2042.1,2041.5,0.0011]
[1772627832822,0.45093268,2042.0,2041.5,0.0011]
[1772627833140,5.96394408,2042.1,2041.5,0.0011]
[1772627833438,0.45097466,2042.0,2041.5,0.0011]
[1772627833638,5.96394408,2042.1,2041.5,0.0011]
[1772627833843,0.45107546,2042.0,2041.5,0.0011]
[1772627834155,5.96394835,2042.1,2041.5,0.0011]
[1772627834355,0.45109603,2042.0,2041.5,0.0011]
[1772627834512,1.22520325,2042.2,2041.5,0.0011]
[1772627834712,0.45111394,2042.1,2041.5,0.0011]
[1772627835013,5.96491738,2042.2,2041.5,0.0011]
[1772627835211,0.45115196,2042.1,2041.5,0.0011]
[1772627835435,5.96491738,2042.2,2041.5,0.0011]
[1772627835641,0.45116224,2042.1,2041.5,0.0011]
[1772627835817,5.96491738,2042.2,2041.5,0.0011]
[1772627836018,0.45116352,2042.1,2041.5,0.0011]
[1772627836222,0.45123175,2042.0,2041.5,0.0011]
[1772627836422,5.96491738,2042.2,2041.5,0.0011]
[1772627836619,0.45123017,2042.1,2041.5,0.0011]
[1772627836842,0.45123017,2042.0,2041.5,0.0011]
[1772627837007,5.96491738,2042.2,2041.5,0.0011]
[1772627837213,0.45124952,2042.1,2041.5,0.0011]
[1772627837435,1.67554248,2042.0,2041.5,0.0011]
[1772627837632,1.22429296,2042.0,2041.5,0.0011]
[1772627838143,5.96400709,2042.0,2041.5,0.0011]
[1772627840440,4.73971413,2042.0,2041.5,0.0011]
[1772627841037,0.45188129,2041.9,2041.5,0.0011]
[1772627841237,4.23325478,2041.9,2041.5,0.0011]
[1772627842363,1.22440983,2041.8,2041.5,0.0011]
[1772627843031,5.45765283,2041.9,2041.5,0.0011]
[1772627843228,0.45244526,2041.8,2041.5,0.0011]
[1772627843433,5.45765283,2041.9,2041.5,0.0011]
[1772627843620,0.45238507,2041.8,2041.5,0.0011]
[1772627843821,5.45765283,2041.9,2041.5,0.0011]
[1772627844147,0.45237324,2041.8,2041.7,0.0011]
[1772627844533,0.45337324,2041.8,2041.7,0.0011]
[1772627845053,1.67778307,2041.8,2041.7,0.0011]
[1772627845247,0.45337324,2041.8,2041.7,0.0011]
[1772627845762,1.67778307,2041.8,2041.7,0.0011]
[1772627846151,6.07975785,2041.8,2041.5,0.0011]
[1772627846325,4.85434802,2041.7,2041.5,0.0011]
[1772627846633,1.67690302,2041.6,2041.5,0.0011]
[1772627847432,1.67690302,2041.6,2041.0,1.22594933]
[1772627847638,1.67690302,2041.6,2041.0,1.2259884]
[1772627847639,4.85434802,2041.5,2041.0,1.2259884]
[1772627847830,0.45237324,2041.4,2041.0,1.2259884]
[1772627848424,1.22452228,2041.7,2041.2,1.22476974]
[1772627848622,4.85446064,2041.6,2040.8,2.32739703]
[1772627848824,4.85446064,2041.5,2040.8,0.0011]
[1772627849143,1.568,2041.6,2040.8,0.0011]
[1772627849144,4.40197478,2041.3,2040.8,0.0011]
[1772627849329,1.568,2041.6,2040.8,0.0011]
[1772627849330,4.85446064,2041.2,2040.8,0.0011]
[1772627849531,0.45248586,2041.1,2040.8,0.0011]
[1772627849735,4.40197478,2041.2,2040.8,0.0011]
[1772627850038,0.45220857,2041.1,2040.8,0.0011]
[1772627850235,1.22452228,2041.7,2040.8,4.45581707]
[1772627850440,0.4520013,2041.6,2040.9,4.45471707]
[1772627850749,1.22545925,2041.8,2041.0,5.67960682]
[1772627851057,0.45204935,2041.7,2041.1,4.45471707]
[1772627851355,1.22545925,2041.8,2041.1,4.45471707]
[1772627851562,0.45186974,2041.7,2041.1,4.45471707]
[1772627851734,0.001,2041.8,2041.1,4.45471707]
[1772627851930,0.45186405,2041.7,2041.1,4.45471707]
[1772627852130,0.001,2041.8,2041.1,4.45471707]
[1772627852329,0.45187106,2041.7,2041.1,4.45471707]
[1772627852557,5.62738733,2041.8,2041.1,5.85071707]
[1772627852856,0.001,2041.8,2041.3,4.45471707]
[1772627853856,1.22541729,2041.8,2041.2,1.22476974]
[1772627854368,0.001,2041.8,2041.2,1.22476974]
[1772627854529,1.22544052,2041.8,2041.2,1.22476974]
[1772627854732,0.001,2041.8,2041.1,9.35379604]
[1772627854931,0.4520758,2041.7,2041.1,10.75179604]
[1772627855257,4.40297478,2041.8,2041.1,10.75179604]
[1772627855565,0.45211474,2041.7,2041.1,1.22482974]
[1772627855754,4.40297478,2041.8,2041.1,1.22482974]
[1772627855935,0.45213464,2041.7,2041.1,1.22482974]
[1772627856137,0.001,2041.8,2041.2,4.45471707]
[1772627856995,0.001,2041.8,2041.3,5.67942681]
[1772627857635,0.001,2041.8,2041.4,4.45471707]
[1772627858274,0.001,2041.8,2041.5,0.0011]
[1772627858969,0.001,2041.8,2041.5,1.22568976]
[1772627860132,0.001,2041.8,2041.5,5.68040683]
[1772627863566,0.12,2042.1,2041.6,4.45471707]
[1772627864073,0.121,2042.2,2041.6,4.45471707]
[1772627865168,0.001,2042.4,2041.6,4.45471707]
[1772627865364,0.001,2042.4,2041.8,4.45471707]
[1772627865577,0.001,2042.4,2041.9,4.45471707]
[1772627866071,4.40297478,2042.4,2041.8,1.405]
[1772627866973,4.40297478,2042.4,2041.6,1.22448219]
[1772627866974,4.40197478,2042.2,2041.6,1.22448219]
[1772627867473,5.62702594,2042.4,2041.7,4.45471707]
[1772627867655,0.45151532,2042.3,2041.7,4.45471707]
[1772627867855,5.62702594,2042.4,2041.7,4.45471707]
[1772627868055,4.8535277,2042.3,2041.7,4.45471707]
[1772627868259,4.40197478,2042.3,2041.7,4.45471707]
[1772627869576,0.001,2042.4,2041.8,5.37339019]
[1772627869875,0.001,2042.4,2041.9,4.14898036]
[1772627870179,4.51401552,2042.9,2042.0,4.14898036]
[1772627870377,0.45133698,2042.8,2042.0,4.14898036]
[1772627870575,8.33515005,2043.1,2042.0,4.14898036]
[1772627870778,4.96546706,2043.0,2042.2,4.14898036]
[1772627871080,0.45146137,2042.9,2042.3,1.41]
[1772627871253,4.51401552,2043.0,2042.3,1.41]
[1772627871781,1.22375055,2042.9,2042.4,1.22405013]
[1772627872000,5.73761975,2043.2,2042.4,5.37303049]
[1772627872178,0.45120338,2043.1,2042.4,5.37303049]
[1772627872352,5.73761975,2043.2,2042.4,5.37303049]
[1772627872555,4.51401552,2043.2,2042.4,5.37303049]
[1772627872777,4.51401552,2043.4,2042.5,4.14898036]
[1772627872983,0.45096258,2043.3,2042.5,4.14898036]
[1772627873152,4.51401552,2043.4,2042.5,4.14898036]
[1772627873587,1.22335987,2043.6,2042.5,4.14898036]
[1772627873758,0.45068277,2043.5,2042.7,4.14898036]
[1772627873960,5.73733121,2043.7,2042.9,4.14898036]
[1772627874263,4.51401552,2043.6,2042.9,4.14898036]
[1772627875362,4.51401552,2043.6,2042.9,5.56398036]
[1772627876067,1.22339124,2043.5,2043.0,1.22369065]
[1772627877561,4.51401552,2043.6,2043.0,1.22369065]
[1772627877762,1.223321,2043.7,2043.0,5.37267101]
[1772627878067,2.71990533,2043.9,2043.2,5.37255122]
[1772627878068,1.55195815,2043.9,2043.2,5.37255122]
[1772627878266,0.32880428,2043.9,2043.3,4.14898036]
[1772627878491,0.32880428,2043.9,2043.4,5.56698036]
[1772627878868,1.22300044,2044.2,2043.5,4.14898036]
[1772627879693,5.73696217,2044.3,2043.5,4.14898036]
[1772627879875,5.73691637,2044.4,2043.5,4.14898036]
[1772627880292,5.73691637,2044.4,2043.6,5.37231173]
[1772627880491,4.51401552,2044.3,2043.6,1.22333137]
[1772627880792,1.22290085,2044.4,2043.7,4.14898036]
[1772627881090,1.22275695,2044.6,2043.7,4.14898036]
[1772627881480,0.002,2044.7,2043.7,4.14898036]
[1772627882307,4.51401552,2044.6,2043.8,1.422]
[1772627882619,0.002,2044.7,2043.8,1.422]
[1772627883275,0.002,2044.7,2043.3,4.8933255]
[1772627883276,4.51401552,2044.6,2043.3,4.8933255]
[1772627883465,4.51401552,2044.6,2043.3,6.3173255]
[1772627883667,4.51401552,2044.6,2043.4,4.14898036]
[1772627884485,4.51401552,2044.4,2043.5,1.22339124]
[1772627885065,1.22273844,2044.6,2043.6,4.14898036]
[1772627885778,4.51601552,2044.7,2043.6,4.14898036]
[1772627886472,0.002,2044.7,2043.8,4.14898036]
[1772627886672,0.002,2044.7,2044.0,4.14898036]
[1772627887370,5.73869045,2044.7,2043.9,1.429]
[1772627888994,5.73869045,2044.7,2044.0,1.22309197]
[1772627889691,1.22468055,2044.7,2044.0,5.37207233]
[1772627890493,0.002,2045.2,2044.0,5.37207233]
[1772627890494,4.88493741,2047.2,2044.5,4.49899079]
[1772627890693,4.88493741,2047.2,2045.3,4.49899079]
[1772627890694,0.44763858,2047.1,2045.3,4.49899079]
[1772627890871,1.22135912,2046.9,2045.6,5.7211261]
[1772627891067,1.22135912,2046.9,2045.6,4.49899079]
[1772627891295,1.22135912,2046.9,2045.2,4.49899079]
[1772627891476,0.065536,2046.8,2045.2,4.49899079]
[1772627891676,0.735613,2046.7,2045.2,4.49899079]
[1772627893192,1.22153816,2046.6,2045.4,4.49899079]
[1772627894372,1.22135912,2046.9,2045.4,4.49899079]
[1772627895085,1.95520728,2046.9,2045.4,4.49899079]
[1772627895287,1.95520728,2046.9,2045.6,4.49899079]
[1772627895680,0.73384816,2046.8,2045.6,4.49899079]
[1772627895877,1.22135912,2046.9,2045.6,4.49899079]
[1772627896300,0.001,2046.7,2045.6,4.49899079]
[1772627897276,0.001,2046.7,2045.8,4.49899079]
[1772627899304,0.001,2046.7,2046.0,4.49899079]
[1772627900275,0.001,2046.7,2045.9,1.2219561]
[1772627900276,0.73617468,2047.5,2046.2,4.49899079]
[1772627900485,0.73617468,2047.4,2046.2,4.49899079]
[1772627901426,0.73617468,2047.4,2046.2,5.72076294]
[1772627901427,0.73509438,2047.2,2046.2,5.72076294]
[1772627901713,1.95510245,2047.3,2046.3,4.49899079]
[1772627902598,1.2211205,2047.3,2046.3,4.49899079]
[1772627903504,1.2211205,2047.3,2046.5,4.51463457]
[1772627904681,0.73635222,2047.2,2045.9,4.51463457]
[1772627905005,2.33435222,2047.2,2045.9,4.51463457]
[1772627905516,2.33435222,2047.2,2046.0,4.51463457]
[1772627905517,0.73635222,2047.0,2046.0,4.51463457]
[1772627905671,1.2212398,2047.1,2046.0,4.51463457]
[1772627905874,2.8202398,2047.1,2046.0,4.51463457]
[1772627906575,3.55516465,2047.1,2046.0,4.51463457]
[1772627906776,1.95616465,2047.1,2046.0,4.51463457]
[1772627907000,3.55516465,2047.1,2046.0,4.51463457]
[1772627907884,3.55516465,2047.1,2045.9,4.51463457]
[1772627908084,0.73603175,2047.0,2045.9,4.51463457]
[1772627908290,0.73603175,2047.0,2046.0,0.001]
[1772627908492,0.73603175,2046.8,2046.0,0.001]
[1772627908799,0.002,2046.9,2046.0,0.001]
[1772627908800,2.3344258,2046.7,2046.0,0.001]
[1772627909098,1.6,2046.6,2046.0,0.001]
[1772627909924,1.22159784,2046.5,2045.8,4.51563457]
[1772627910423,0.73277042,2046.4,2045.5,0.001]
[1772627910622,0.73277042,2046.4,2045.5,5.73780654]
[1772627910810,2.33277042,2046.4,2045.5,5.73780654]
[1772627911001,0.73277042,2046.4,2045.6,4.51463457]
[1772627911207,2.82259784,2046.5,2045.6,4.51463457]
[1772627911425,1.22159784,2046.5,2045.6,4.51463457]
[1772627912128,4.88639139,2046.6,2045.8,4.51463457]
[1772627913030,1.22153816,2046.6,2045.8,4.51463457]
[1772627914120,4.8874398,2046.9,2046.0,4.51463457]
[1772627914826,1.22335912,2046.9,2046.0,4.51463457]
[1772627915707,1.22335912,2046.9,2045.7,4.51463457]
[1772627915708,0.72281479,2046.8,2045.7,4.51463457]
[1772627916300,1.94237337,2046.7,2045.8,4.51463457]
[1772627916522,1.602,2046.6,2045.8,4.51463457]
[1772627916836,2.32097505,2046.6,2045.8,4.51463457]
[1772627917038,1.602,2046.6,2045.8,4.51463457]
[1772627917668,0.71897505,2046.5,2045.5,5.73778691]
[1772627917966,0.71897505,2046.5,2045.5,4.51563457]
[1772627918464,1.93862702,2046.4,2045.5,4.51563457]
[1772627919630,1.22165754,2046.4,2045.5,4.51563457]
[1772627919831,1.9345516,2046.4,2045.5,4.51563457]
[1772627920443,1.22165754,2046.4,2045.5,5.73782753]
[1772627920854,1.22165754,2046.4,2045.6,4.51463457]
[1772627921046,1.93241242,2046.4,2045.6,4.51463457]
[1772627922734,1.93241242,2046.4,2045.6,1.22213484]
[1772627922932,1.22165754,2046.4,2045.7,4.51463457]
[1772627923125,1.22165754,2046.4,2045.9,4.51463457]
[1772627923362,1.22365754,2046.4,2045.9,4.51463457]
[1772627924459,1.22365754,2046.4,2046.0,4.51463457]
[1772627924460,0.002,2046.4,2046.0,4.51463457]
[1772627925439,0.002,2046.4,2045.8,0.001]
[1772627925887,0.69267768,2046.4,2045.8,0.001]
[1772627926575,1.22171724,2046.3,2045.8,4.51563457]
[1772627926992,0.002,2046.4,2045.8,4.51563457]
[1772627927156,0.002,2046.6,2046.3,4.51463457]
[1772627927344,1.22353929,2046.6,2046.3,4.51463457]
[1772627928052,0.002,2046.6,2046.3,4.51463457]
[1772627928565,0.002,2046.6,2046.3,5.73633233]
[1772627928966,0.002,2046.6,2046.3,4.51463457]
[1772627929162,0.002,2046.6,2046.1,4.45052941]
[1772627930793,0.002,2046.6,2046.3,4.45052941]
[1772627932271,6.48205755,2047.1,2046.2,4.45052941]
[1772627932472,4.88505755,2047.1,2046.2,4.45052941]
[1772627932672,4.88452345,2047.3,2046.4,4.45052941]
[1772627933201,6.48052345,2047.3,2046.4,4.45052941]
[1772627933391,4.88452345,2047.3,2046.4,4.45052941]
[1772627934504,6.47952345,2047.3,2046.4,4.45052941]
[1772627935376,4.88452345,2047.3,2046.6,4.45052941]
[1772627935912,6.47752345,2047.3,2046.6,4.45052941]
[1772627937308,6.47752345,2047.3,2046.6,1.22149745]
[1772627937510,6.47752345,2047.3,2046.7,4.45052941]
[1772627937806,4.88452345,2047.3,2046.7,4.45052941]
[1772627939002,0.002,2047.1,2046.7,4.45052941]
[1772627939311,1.95169388,2047.1,2046.5,0.001]
[1772627939609,0.002,2047.1,2046.5,4.45152941]
[1772627939902,0.002,2047.1,2046.6,4.45052941]
[1772627940274,1.94867034,2047.1,2046.5,0.001]
[1772627941181,1.94867034,2047.1,2045.8,2.33723497]
[1772627941382,1.94266988,2046.9,2045.8,4.45152941]
[1772627941685,1.588,2046.8,2045.8,4.45152941]
[1772627942212,1.94266988,2046.9,2045.8,4.45152941]
[1772627942412,1.588,2046.8,2045.8,4.45152941]
[1772627942717,1.22129946,2047.0,2045.9,4.45052941]
[1772627943089,3.15789902,2047.0,2045.9,4.45052941]
[1772627943290,3.15789902,2047.0,2046.1,4.45052941]
[1772627943489,1.587,2046.9,2046.1,4.45052941]
[1772627943702,1.22129946,2047.0,2046.1,4.45052941]
[1772627943885,2.80729946,2047.0,2046.1,4.45052941]
[1772627944301,1.22129946,2047.0,2046.1,4.45052941]
[1772627944493,1.22328743,2047.1,2046.1,4.45052941]
[1772627944696,0.002,2047.1,2046.1,4.45052941]
[1772627944921,1.2232437,2047.1,2046.1,4.45052941]
[1772627945413,0.002,2047.1,2046.3,4.45052941]
[1772627946192,1.92911525,2047.1,2046.3,4.45052941]
[1772627947098,0.002,2047.1,2046.3,4.45052941]
[1772627947524,0.002,2047.1,2046.4,5.67218695]
[1772627949529,0.002,2047.1,2046.5,4.45052941]
[1772627949727,0.002,2047.1,2046.5,5.67211626]
[1772627950306,0.002,2047.1,2046.5,4.45052941]
[1772627950534,1.91422428,2047.0,2045.9,6.78676438]
[1772627950744,1.91422428,2046.8,2046.0,5.67242579]
[1772627950913,1.91094816,2046.7,2045.8,5.67350044]
[1772627951530,1.91094816,2046.7,2045.9,4.45052941]
[1772627951737,1.579,2046.7,2046.0,5.67242579]
[1772627951904,1.579,2046.7,2046.0,4.45052941]
[1772627952100,1.2214188,2046.8,2046.0,4.45152941]
[1772627952316,1.579,2046.7,2046.0,4.45152941]
[1772627952516,1.2234188,2046.8,2046.0,4.45152941]
[1772627952902,0.002,2046.8,2046.0,4.45152941]
[1772627953647,0.002,2047.0,2046.3,4.45052941]
[1772627953932,0.002,2047.0,2046.5,4.45052941]
[1772627955845,0.002,2047.0,2046.7,4.45052941]
[1772627957356,0.73889898,2047.6,2046.7,4.45052941]
[1772627957667,0.73889898,2047.6,2046.8,4.45052941]
[1772627958041,0.73889898,2047.6,2047.0,4.45052941]
[1772627958859,1.9598435,2047.6,2047.0,4.45052941]
[1772627959762,3.45893607,2047.5,2046.7,4.35324144]
[1772627960367,1.22106085,2047.4,2046.7,5.5746851]
[1772627960975,1.22106085,2047.4,2046.8,4.35324144]
[1772627962365,2.79300122,2047.5,2046.9,4.35324144]
[1772627962580,2.79300122,2047.5,2046.7,5.57470974]
[1772627963445,2.79300122,2047.5,2046.8,4.68305932]
[1772627963652,2.79200122,2047.5,2046.8,4.68305932]
[1772627964054,1.22100122,2047.5,2046.8,4.68305932]
[1772627964290,2.79200122,2047.5,2046.9,1.22135912]
[1772627964583,1.22100122,2047.5,2046.9,5.90441844]
[1772627964785,2.79200122,2047.5,2046.9,5.90441844]
[1772627964972,1.95988333,2047.6,2047.0,4.68305932]